{"text_format":"1","workbook":"xlsx","n_sheets":3,"sheets":["Hoja2","Hoja3","apuntes"],"not_rendered":{"charts":0,"images":119,"macros":1,"external_links":0,"defined_names":0,"comments":0,"pivot_tables":0},"unopened":[],"bounds":{"document_bytes":16777216,"sheet_cells":100000,"rows_first":2000,"rows_last":500,"rows_between":2000,"halvings":0,"cell_chars":16384,"cell_head_chars":4096},"cells_cut":0,"cells_raw":0,"read":"whole","date_system":"1900"}

{"sheet":"Hoja2","index":0,"n_rows":25,"n_cols":22,"rows_kept":25,"cut":false,"hidden":false,"merged":[[24,1,25,1],[0,13,0,16],[1,13,1,19],[2,13,2,15],[2,0,2,4],[2,9,2,10]]}
[null,null,null,null,null,null,null,null,null,null,null,null,null,"julio del 2010 por joannostro"]
[null,null,null,null,null,null,null,null,null,null,null,null,null,"Pulsando en la bandera te llevará y te dirá de dónde es "]
["Escribe el nombre de la Nación si aciertas se pondrá en verde       no acentos",null,null,null,null,null,null,0,null,{"$f":"VLOOKUP(H3,apuntes!A1:C58,2,FALSE)","v":"Capital"},null,null,null,{"$f":"VLOOKUP(H3,apuntes!A1:C58,3,FALSE)","v":"pista"},null,null,{"$f":"SUM(V5:V25)","v":0},null,"de",57]
[null,null,null,null,null,null,null,1]
[1,null,{"$f":"IF(B5=\"Argentina\",\"x\")","v":false},10,null,{"$f":"IF(E5=\"Austria\",\"x\")","v":false},18,null,{"$f":"IF(H5=\"Belgica\",\"x\")","v":false},26,null,{"$f":"IF(K5=\"Bulgaria\",\"x\")","v":false},34,null,{"$f":"IF(N5=\"Chile\",\"x\")","v":false},42,null,{"$f":"IF(Q5=\"China\",\"x\")","v":false},50,null,{"$f":"IF(T5=\"Colombia\",\"x\")","v":false},{"$f":"COUNTIF(C5:U5,\"x\")","v":0}]
[]
[2,null,{"$f":"IF(B7=\"España\",\"x\")","v":false},11,null,{"$f":"IF(E7=\"Francia\",\"x\")","v":false},19,null,{"$f":"IF(H7=\"Grecia\",\"x\")","v":false},27,null,{"$f":"IF(K7=\"India\",\"x\")","v":false},35,null,{"$f":"IF(N7=\"Indonesia\",\"x\")","v":false},43,null,{"$f":"IF(Q7=\"Italia\",\"x\")","v":false},51,null,{"$f":"IF(T7=\"Jamaica\",\"x\")","v":false},{"$f":"COUNTIF(C7:U7,\"x\")","v":0}]
[]
[3,null,{"$f":"IF(B9=\"Liberia\",\"x\")","v":false},12,null,{"$f":"IF(E9=\"Marruecos\",\"x\")","v":false},20,null,{"$f":"IF(H9=\"Polonia\",\"x\")","v":false},28,null,{"$f":"IF(K9=\"Portugal\",\"x\")","v":false},36,null,{"$f":"IF(N9=\"Rusia\",\"x\")","v":false},44,null,{"$f":"IF(Q9=\"Suecia\",\"x\")","v":false},52,null,{"$f":"IF(T9=\"Suiza\",\"x\")","v":false},{"$f":"COUNTIF(C9:U9,\"x\")","v":0}]
[]
[4,null,{"$f":"IF(B11=\"Mexico\",\"x\")","v":false},13,null,{"$f":"IF(E11=\"Peru\",\"x\")","v":false},21,null,{"$f":"IF(H11=\"Alemania\",\"x\")","v":false},29,null,{"$f":"IF(K11=\"Holanda\",\"x\")","v":false},37,null,{"$f":"IF(N11=\"Republica Checa\",\"x\")","v":false},45,null,{"$f":"IF(Q11=\"Cuba\",\"x\")","v":false},53,null,{"$f":"IF(T11=\"Irlanda\",\"x\")","v":false},{"$f":"COUNTIF(C11:U11,\"x\")","v":0}]
[]
[5,null,{"$f":"IF(B13=\"Escocia\",\"x\")","v":false},14,null,{"$f":"IF(E13=\"Noruega\",\"x\")","v":false},22,null,{"$f":"IF(H13=\"Islandia\",\"x\")","v":false},30,null,{"$f":"IF(K13=\"Finlandia\",\"x\")","v":false},38,null,{"$f":"IF(N13=\"Estados Unidos\",\"x\")","v":false},46,null,{"$f":"IF(Q13=\"Dinamarca\",\"x\")","v":false},54,null,{"$f":"IF(T13=\"estonia\",\"x\")","v":false},{"$f":"COUNTIF(C13:U13,\"x\")","v":0}]
[null,null,null,null,null,null,null,null,null,null,null,null,null,null,null,null,null,null,null,"Estonia"]
[6,null,{"$f":"IF(B15=\"Bielorrusia\",\"x\")","v":false},15,null,{"$f":"IF(E15=\"Ucrania\",\"x\")","v":false},23,null,{"$f":"IF(H15=\"Moldavia\",\"x\")","v":false},31,null,{"$f":"IF(K15=\"Rumania\",\"x\")","v":false},39,null,null,47,null,{"$f":"IF(Q15=\"Macedonia\",\"x\")","v":false},55,null,{"$f":"IF(T15=\"Serbia\",\"x\")","v":false},{"$f":"COUNTIF(C15:U15,\"x\")","v":0}]
[]
[7,null,{"$f":"IF(B17=\"Eslovenia\",\"x\")","v":false},16,null,{"$f":"IF(E17=\"Hungria\",\"x\")","v":false},24,null,{"$f":"IF(H17=\"Eslovaquia\",\"x\")","v":false},32,null,{"$f":"IF(K17=\"Croacia\",\"x\")","v":false},40,null,{"$f":"IF(N17=\"Egipto\",\"x\")","v":false},48,null,{"$f":"IF(Q17=\"Kenia\",\"x\")","v":false},56,null,{"$f":"IF(T17=\"Japon\",\"x\")","v":false},{"$f":"COUNTIF(C17:U17,\"x\")","v":0}]
[null,"E"]
[]
[]
[8,null,{"$f":"IF(B21=\"Libano\",\"x\")","v":false},17,null,{"$f":"IF(E21=\"Turquia\",\"x\")","v":false},25,null,{"$f":"IF(H21=\"Ecuador\",\"x\")","v":false},33,null,{"$f":"IF(K21=\"Reino Unido\",\"x\")","v":false},41,null,{"$f":"IF(N21=\"Inglaterra\",\"x\")","v":false},49,null,{"$f":"IF(Q21=\"Letonia\",\"x\")","v":false},57,null,{"$f":"IF(T21=\"Lituania\",\"x\")","v":false},{"$f":"COUNTIF(C21:U21,\"x\")","v":0}]
[]
[]
[]
[9,null,{"$f":"IF(B25=\"Bosnia y Herzegovina\",\"x\")","v":false},null,null,null,null,null,null,null,null,null,null,null,null,null,null,null,null,null,null,{"$f":"COUNTIF(C25:U25,\"x\")","v":0}]

{"sheet":"Hoja3","index":1,"n_rows":59,"n_cols":5,"rows_kept":59,"cut":false,"hidden":false,"merged":[[14,0,14,1]]}
[]
[null,null,null,null,"Argentina  Buenos Aires"]
[null,null,null,null,"Austria Viena"]
[null,null,null,null,"Belgica Bruselas"]
[null,null,null,null,"Bulgaria  Sofia"]
[null,null,null,null,"Chile Santiago de Chile"]
[null,null,null,null,"Ecuador Quito"]
[null,null,null,null,"Alemania Berlin"]
[null,null,null,null,"Holanda Amsterdam"]
[null,null,null,null,"Cuba              La Habana"]
[null,null,null,null,"China   Pekin"]
[null,null,null,null,"Colombia Bogotá"]
[null,null,null,null,"Egipto              El Cairo"]
[null,null,null,null,"Kenia Nairobi"]
["Campeona en el Mundial del 2010 Al jugar contra Holanda el 11 de julio 1-0                Andrés Iniesta",null,null,null,"España Madrid"]
[null,null,null,null,"Francia    París"]
[null,null,null,null,"Grecia  Atenas"]
[null,null,null,null,"India       Nueva Delhi"]
[null,null,null,null,"Indonesia Yakarta"]
[null,null,null,null,"Italia      Roma"]
[null,null,null,null,"Jamaica Kingston"]
[null,null,null,null,"Japón    Tokio"]
[null,null,null,null,"Libano Beirut"]
[null,null,null,null,"Liberia Monrovia"]
[null,null,null,null,"Marruecos Rabat"]
[null,null,null,null,"Polonia  Varsovia"]
[null,null,null,null,"Portugal Lisboa"]
[null,null,null,null,"Rusia    Moscú"]
[null,null,null,null,"Suecia Estocolmo"]
[null,null,null,null,"Suiza    Berna"]
[null,null,null,null,"Turquia Ankara"]
[null,null,null,null,"México México"]
[null,null,null,null,"Irlanda Dublín"]
[null,null,null,null,"Reino Unido Londrés"]
[null,null,null,null,"Inglaterra  Londrés"]
[null,null,null,null,"Escocia  Edimburgo"]
[null,null,null,null,"Noruega  Oslo"]
[null,null,null,null,"Islandia  Reikiavik"]
[null,null,null,null,"Finlandia Helsinki"]
[null,null,null,null,"Perú          Lima"]
[null,null,null,null,"Estados Unidos Washington D.C."]
[null,null,null,null,"Luxemburgo Luxemburgo"]
[null,null,null,null,"Dinamarca Copenhague"]
[null,null,null,null,"Estonia Tallin"]
[null,null,null,null,"Letonia     Riga"]
[null,null,null,null,"Lituania  Vilna"]
[null,null,null,null,"Bielorrusia  Minsk"]
[null,null,null,null,"Ucrania   Kiev"]
[null,null,null,null,"Moldavia Chisinau"]
[null,null,null,null,"Rumania Bucarest"]
[null,null,null,null,"Albania  Tirana"]
[null,null,null,null,"Macedonia Skopje"]
[null,null,null,null,"Serbia Belgrado"]
[null,null,null,null,"Bosnia y Herzegovina Sarajevo"]
[null,null,null,null,"Croacia Zagreb"]
[null,null,null,null,"Eslovenia Liubliana"]
[null,null,null,null,"Hungria Budapest"]
[null,null,null,null,"Eslovaquia Bratislava"]
[null,null,null,null,"Republica Checa     Praga"]

{"sheet":"apuntes","index":2,"n_rows":58,"n_cols":3,"rows_kept":58,"cut":false,"hidden":true,"merged":[]}
[0,"Capital","pista"]
[1,"Buenos Aires","Ar..."]
[2,"Madrid","Es...ña"]
[3,"Monrovia","Libe...a"]
[4,"México","México"]
[5,"Edimburgo","Es...a"]
[6,"Minsk","Bielo...sia"]
[7,"Liubliana","Eslo...ia"]
[8,"Beirut","Li...no"]
[9,"Sarajevo","Bos... y  Herze...vina"]
[10,"Viena","Aus...a"]
[11,"París","Fra...a"]
[12,"Rabat","Marr...os"]
[13,"Lima","Pe...u"]
[14,"Oslo","No...ga"]
[15,"Kiev","Ucra...a"]
[16,"Budapest","Hun...a "]
[17,"Ankara","Tur..a"]
[18,"Bruselas","Bel...ca"]
[19,"Atenas","Gre..."]
[20,"Varsovia","Po...a"]
[21,"Berlin","Al...a"]
[22,"Reikiavik","Isla...a"]
[23,"Chisinau","Mol...via"]
[24,"Bratislava","Eslo...ia"]
[25,"Quito","Ec...or"]
[26,"Sofia","Bul...ia"]
[27,"Nueva Delhi","In...a"]
[28,"Lisboa","Por...gal"]
[29,"Amsterdam","Ho...da"]
[30,"Helsinki","Fin...ia"]
[31,"Bucarest","Ru..ia"]
[32,"Zagreb","Cro...ia"]
[33,"Londres","Reino Unido"]
[34,"Santiago de Chile","Chi...e"]
[35,"Yakarta","Indo...sia"]
[36,"Moscú","Rusia"]
[37,"Praga","Repu...     Che...a"]
[38,"Washington","Est...s     Un...os"]
[39,"Tirana","Alba...a"]
[40,"El Cairo","Egi...to"]
[41,"Londrés","In...a"]
[42,"Pekín","China"]
[43,"Roma","Ita..a"]
[44,"Estocolmo","Su...a"]
[45,"La Habana","Cu...a"]
[46,"Copenhague","Din...ca"]
[47,"Skopje","Macedonia"]
[48,"Nairobi","Ke...a"]
[49,"Riga","Leto...a"]
[50,"Bogotá","Col...a"]
[51,"Kingston","Ja...ca"]
[52,"Berna","Su...a"]
[53,"Dublin","Ir...da"]
[54,"Tallin","Esto...a"]
[55,"Belgrado","Se...ia"]
[56,"Tokio","Ja...on"]
[57,"Vilna","Litu...a"]